fUST/lending_fUST_20250108
["ID","MTS","AMOUNT","RATE_DAILY","PERIOD"]
[348040699,1736273440463,-500.0,0.00019178,2]
[348040700,1736273440475,-500.0,0.00019178,2]
[348040702,1736273440485,-500.0,0.00019178,2]
[348040704,1736273440495,-500.0,0.00019178,2]
[348040706,1736273440504,-500.0,0.00019178,2]
[348040708,1736273440514,-169.28370037,0.00019178,2]
[348040710,1736273440524,-500.0,0.00019178,2]
[348040712,1736273440534,-500.0,0.00019178,2]
[348040715,1736273440544,-500.0,0.00019178,2]
[348040717,1736273440555,-500.0,0.00019178,2]
[348040718,1736273440565,-500.0,0.00019178,2]
[348040721,1736273440575,-508.90247428,0.00019178,2]
[348040722,1736273440586,-500.0,0.00019178,2]
[348040724,1736273440596,-500.0,0.00019178,2]
[348040727,1736273440607,-500.0,0.00019178,2]
[348040728,1736273440617,-500.0,0.00019178,2]
[348040731,1736273440628,-502.32278179,0.00019178,2]
[348040733,1736273440638,-500.0,0.00019178,2]
[348040735,1736273440649,-518.71050624,0.00019178,2]
[348040737,1736273440659,-500.0,0.00019178,2]
[348040739,1736273440668,-500.0,0.00019178,2]
[348040741,1736273440684,-500.0,0.00019178,2]
[348040743,1736273440694,-500.0,0.00019178,2]
[348040745,1736273440703,-500.0,0.00019178,2]
[348040747,1736273440712,-500.0,0.00019178,2]
[348040749,1736273440722,-500.0,0.00019178,2]
[348040751,1736273440731,-500.0,0.00019178,2]
[348040753,1736273440740,-500.0,0.00019178,2]
[348040755,1736273440749,-500.0,0.00019178,2]
[348040757,1736273440759,-500.0,0.00019178,2]
[348040759,1736273440768,-500.0,0.00019178,2]
[348040761,1736273440780,-500.0,0.00019178,2]
[348040763,1736273440790,-500.0,0.00019178,2]
[348040765,1736273440800,-500.0,0.00019178,2]
[348040767,1736273440810,-500.0,0.00019178,2]
[348040769,1736273440819,-500.0,0.00019178,2]
[348040771,1736273440830,-500.0,0.00019178,2]
[348040773,1736273440839,-500.0,0.00019178,2]
[348040775,1736273440848,-502.98895973,0.00019178,2]
[348040777,1736273440857,-500.0,0.00019178,2]
[348040779,1736273440867,-500.0,0.00019178,2]
[348040781,1736273440877,-506.34,0.00019178,2]
[348040782,1736273440886,-500.0,0.00019178,2]
[348040785,1736273440895,-500.0,0.00019178,2]
[348040786,1736273440905,-500.0,0.00019178,2]
[348040788,1736273440915,-500.0,0.00019178,2]
[348040790,1736273440924,-500.0,0.00019178,2]
[348040792,1736273440936,-500.0,0.00019178,7]
[348040794,1736273440945,-500.0,0.00019178,2]
[348040796,1736273440955,-500.0,0.00019178,2]
[348040798,1736273440965,-500.0,0.00019178,2]
[348040800,1736273440974,-500.0,0.00019178,2]
[348040802,1736273440984,-500.0,0.00019178,2]
[348040804,1736273440993,-7449.98,0.00019178,2]
[348040806,1736273441002,-500.0,0.00019178,2]
[348040808,1736273441011,-500.0,0.00019178,2]
[348040810,1736273441020,-500.0,0.00019178,5]
[348040812,1736273441030,-500.0,0.00019178,2]
[348040814,1736273441039,-500.0,0.00019178,2]
[348040816,1736273441048,-500.0,0.00019178,2]
[348040818,1736273441057,-500.0,0.00019178,2]
[348040820,1736273441066,-500.0,0.00019178,2]
[348040822,1736273441074,-500.0,0.00019178,2]
[348040824,1736273441084,-500.0,0.00019178,2]
[348040826,1736273441092,-500.0,0.00019178,2]
[348040828,1736273441101,-500.0,0.00019178,2]
[348040830,1736273441111,-500.0,0.00019178,2]
[348040832,1736273441120,-500.0,0.00019178,2]
[348040834,1736273441129,-500.0,0.00019178,2]
[348040836,1736273441138,-500.0,0.00019178,2]
[348040838,1736273441147,-500.0,0.00019178,2]
[348040840,1736273441156,-500.0,0.00019178,2]
[348040842,1736273441166,-500.0,0.00019178,2]
[348040844,1736273441177,-500.0,0.00019178,2]
[348040846,1736273441186,-530.87,0.00019178,2]
[348040848,1736273441195,-1970.11,0.00019178,2]
[348040850,1736273441205,-507.91862511,0.00019178,2]
[348040852,1736273441214,-500.0,0.00019178,2]
[348040854,1736273441223,-500.0,0.00019178,2]
[348040856,1736273441233,-438.8837823,0.00019178,2]
[348040858,1736273441242,-164.051294,0.00019178,2]
[348040860,1736273441251,-972.58,0.000192,2]
[348040862,1736273441260,-513.44483011,0.00019452,3]
[348040864,1736273441269,-500.0,0.00019452,3]
[348040866,1736273441278,-462.40852018,0.00019452,3]
[348040868,1736273441288,-505.6337366,0.00019452,3]
[348040870,1736273441297,-500.0,0.00019452,3]
[348040871,1736273441307,-511.43941575,0.00019452,3]
[348040874,1736273441320,-500.0,0.00019452,3]
[348040876,1736273441330,-500.0,0.00019452,3]
[348040878,1736273441339,-500.0,0.00019452,3]
[348040880,1736273441349,-500.0,0.00019452,3]
[348040882,1736273441358,-410.39528203,0.00019452,3]
[348040883,1736273441367,-500.0,0.00019452,3]
[348040886,1736273441377,-500.0,0.00019452,3]
[348040888,1736273441388,-500.0,0.00019452,3]
[348040890,1736273441398,-500.0,0.00019452,3]
[348040892,1736273441407,-500.0,0.00019452,3]
[348040894,1736273441417,-500.0,0.00019452,3]
[348040896,1736273441427,-500.0,0.00019452,3]
[348040898,1736273441437,-500.0,0.00019452,3]
[348040900,1736273441447,-173.55844909,0.00019452,3]
[348040902,1736273441456,-500.0,0.00019452,3]
[348040904,1736273441465,-500.0,0.00019452,3]
[348040906,1736273441474,-500.0,0.00019452,3]
[348040908,1736273441483,-367.96765873,0.00019452,3]
[348040910,1736273441493,-500.0,0.00019452,3]
[348040912,1736273441502,-500.0,0.00019452,3]
[348040914,1736273441511,-500.0,0.00019452,3]
[348040916,1736273441521,-291.55470464,0.00019452,3]
[348040918,1736273441531,-241.23186627,0.00019452,3]
[348040920,1736273441540,-500.0,0.00019452,3]
[348040922,1736273441549,-500.0,0.00019452,3]
[348040924,1736273441558,-500.0,0.00019452,3]
[348040926,1736273441570,-513.59439112,0.00019452,3]
[348040928,1736273441582,-500.0,0.00019452,3]
[348040930,1736273441591,-500.0,0.00019452,3]
[348040931,1736273441600,-500.0,0.00019452,3]
[348040933,1736273441610,-500.0,0.00019452,3]
[348040935,1736273441620,-500.0,0.00019452,3]
[348040938,1736273441630,-500.0,0.00019452,3]
[348040940,1736273441640,-318.63,0.00019452,3]
[348040942,1736273441649,-500.0,0.00019452,3]
[348040944,1736273441658,-500.0,0.00019452,3]
[348040946,1736273441668,-500.0,0.00019452,3]
[348040948,1736273441680,-500.0,0.00019452,3]
[348040950,1736273441690,-240.35,0.00019452,3]
[348040951,1736273441699,-500.0,0.00019452,3]
[348040954,1736273441709,-725.59,0.00019452,3]
[348040956,1736273441719,-500.0,0.00019452,3]
[348040957,1736273441729,-500.0,0.00019452,3]
[348040959,1736273441739,-500.0,0.00019452,3]
[348040961,1736273441748,-291.34,0.00019452,3]
[348040964,1736273441758,-415.98,0.00019452,3]
[348040965,1736273441768,-500.0,0.00019452,3]
[348040967,1736273441777,-500.0,0.00019452,3]
[348040969,1736273441787,-500.0,0.00019452,3]
[348040971,1736273441797,-500.0,0.00019452,3]
[348040973,1736273441807,-500.0,0.00019452,3]
[348040975,1736273441816,-500.0,0.00019452,3]
[348040977,1736273441826,-500.0,0.00019452,3]
[348040979,1736273441835,-500.0,0.00019452,3]
[348040981,1736273441844,-500.0,0.00019452,3]
[348040983,1736273441854,-500.0,0.00019452,3]
[348040985,1736273441863,-500.0,0.00019452,3]
[348040987,1736273441873,-500.0,0.00019452,3]
[348040989,1736273441882,-500.0,0.00019452,3]
[348040991,1736273441892,-500.0,0.00019452,3]
[348040993,1736273441902,-500.0,0.00019452,3]
[348040995,1736273441911,-500.0,0.00019452,3]
[348040997,1736273441921,-500.0,0.00019452,3]
[348040999,1736273441933,-500.0,0.00019452,3]
[348041001,1736273441943,-506.34,0.00019452,3]
[348041003,1736273441953,-500.0,0.00019452,3]
[348041005,1736273441962,-454.41,0.00019452,3]
[348041007,1736273441972,-386.68140035,0.00019452,3]
[348041009,1736273441981,-500.0,0.00019452,3]
[348041011,1736273441991,-500.0,0.00019452,3]
[348041013,1736273442001,-7449.98,0.00019452,3]
[348041015,1736273442010,-500.0,0.00019452,3]
[348041017,1736273442020,-500.0,0.00019452,3]
[348041019,1736273442029,-500.0,0.00019452,3]
[348041021,1736273442039,-500.0,0.00019452,3]
[348041023,1736273442048,-500.0,0.00019452,3]
[348041025,1736273442058,-346.28544101,0.00019452,3]
[348041027,1736273442067,-500.0,0.00019452,3]
[348041029,1736273442077,-500.0,0.00019452,3]
[348041031,1736273442086,-500.0,0.00019452,3]
[348041033,1736273442096,-90.52304083,0.00019452,3]
[348041036,1736273442113,-440.34695917,0.00019452,3]
[348041038,1736273442122,-1970.11,0.00019452,3]
[348041040,1736273442132,-516.42395841,0.00019452,3]
[348041042,1736273442141,-503.51640862,0.00019721,2]
[348041044,1736273442150,-500.0,0.00019726,3]
[348041046,1736273442160,-500.0,0.00019726,3]
[348041048,1736273442169,-500.0,0.00019726,3]
[348041051,1736273442180,-500.0,0.00019726,3]
[348041067,1736273442272,-500.0,0.00019726,3]
[348041070,1736273442293,-500.0,0.00019726,3]
[348041072,1736273442303,-500.0,0.00019726,3]
[348041074,1736273442316,-181.31758754,0.00019726,3]
[348041124,1736273442793,-381.03952581,0.00019178,2]
[348041430,1736273445882,-503.11163309,0.00019173,2]
[348041432,1736273445892,-118.96047419,0.00019178,2]
[348041434,1736273445902,-462.94586441,0.00019178,2]
[348041436,1736273445911,-500.0,0.00019452,3]
[348041438,1736273445920,-318.68241246,0.00019726,3]
[348041440,1736273445931,-500.0,0.00019726,3]
[348041442,1736273445940,-500.0,0.00019726,3]
[348041444,1736273445950,-606.97003457,0.00019726,3]
[348041446,1736273445959,-500.0,0.00019726,3]
[348041448,1736273445968,-500.0,0.00019726,3]
[348041450,1736273445977,-133.45777787,0.00019726,3]
[348043523,1736274143239,1000.0,0.00025,120]
[348043524,1736274238682,223.326089,0.00013973,2]
[348043525,1736274264193,11341.11554317,0.00015,2]
[348043526,1736274264227,2558.88445683,0.00015,2]
[348043951,1736274639938,-300.0,0.00018465,2]
[348043952,1736274639948,-9701.31623999,0.00018466,2]
[348043978,1736274642995,-1172.7013975,0.00018466,2]
[348043979,1736274643005,-10874.01763749,0.00018742,2]
[348043980,1736274643014,-150.0,0.000188,2]
[348043981,1736274643023,-157.85063445,0.00018889,2]
[348043982,1736274643033,-10874.01763749,0.00018974,2]
[348043983,1736274643042,-163.14834758,0.00018989,2]
[348043984,1736274643052,-6232.0,0.00018999,2]
[348043985,1736274643061,-431.52010741,0.00018999,2]
[348043986,1736274643071,-162.13968596,0.00018999,2]
[348043987,1736274643080,-219.33590528,0.00018999,2]
[348043990,1736274643089,-15658.92464684,0.00019,2]
[348043994,1736274643106,-3169.58573055,0.00019,2]
[348044034,1736274646027,-10647.8623316,0.00019,2]
[348044036,1736274646064,-15535.37224243,0.00019,2]
[348044037,1736274646075,-1000.0,0.00019,19]
[348044038,1736274646086,-1000.0,0.00019,2]
[348044039,1736274646096,-272.40065065,0.00019078,2]
[348044040,1736274646106,-163.14834758,0.00019078,2]
[348044041,1736274646117,-162.11191938,0.00019173,2]
[348044042,1736274646128,-203.66318129,0.00019173,2]
[348044043,1736274646138,-152.06172381,0.00019173,2]
[348044044,1736274646148,-500.31570923,0.00019173,2]
[348044045,1736274646158,-500.69303137,0.00019173,2]
[348044046,1736274646167,-160.06501618,0.00019173,2]
[348044047,1736274646177,-151.06135663,0.00019173,2]
[348044048,1736274646187,-600.45376102,0.00019176,2]
[348044049,1736274646197,-15442.27575765,0.00019177,3]
[348044050,1736274646206,-606.99613662,0.00019177,3]
[348044051,1736274646215,-175.338,0.00019177,2]
[348044052,1736274646225,-590625.41543933,0.00019177,5]
[348044066,1736275133799,220.203816,0.00013973,2]
[348044071,1736275227853,1000.0,0.00025,120]
[348044133,1736275832503,-6422.50126897,0.00018701,2]
[348044144,1736275832596,-1021.43915037,0.00018701,2]
[348044146,1736275832605,-150.0,0.000188,2]
[348044147,1736275832615,-300.0,0.0001897,2]
[348044149,1736275832624,-7443.94041935,0.00018971,2]
[348044151,1736275832633,-1000.0,0.00019,19]
[348044153,1736275832642,-1000.0,0.00019,2]
[348044155,1736275832650,-157.85063445,0.00019077,2]
[348044157,1736275832661,-245.16058563,0.00019078,2]
[348044159,1736275832670,-500.0,0.00019173,2]
[348044161,1736275832679,-266.60828839,0.00019173,2]
[348044163,1736275832689,-151.0353512,0.00019173,2]
[348044166,1736275832700,-154.18,0.00019176,2]
[348044170,1736275832710,-219.14500625,0.00019176,2]
[348044173,1736275832719,-500.0,0.00019176,2]
[348044176,1736275832729,-175.339,0.00019176,2]
[348044178,1736275832738,-172.34712994,0.00019176,2]
[348044181,1736275832748,-38185.00683632,0.00019177,3]
[348044184,1736275832757,-2654.50863915,0.00019177,3]
[348044187,1736275832766,-26198.65822253,0.00019177,5]
[348044527,1736275838337,-501.36899371,0.00019173,2]
[348044529,1736275838348,-15984.10849711,0.00019177,5]
[348044549,1736275840290,-24999.000001,0.00019,2]
[348044551,1736275840300,-303400.99995,0.00019177,5]
[348044552,1736275840368,-4999.9575024,0.00019177,5]
[348044595,1736275843612,-14476.22942898,0.00019177,5]
[348044596,1736275843699,-546.48041372,0.00019177,5]
[348044597,1736275843712,-7980.774655,0.00019177,5]
[348044598,1736275843724,-324.21000045,0.00019177,5]
[348044599,1736275843736,-1025.0,0.00019177,5]
[348044623,1736276011523,1000.0,0.00025,120]
[348044624,1736276018090,1000.0,0.00025,120]
[348044625,1736276021241,1000.0,0.00025,120]
[348044626,1736276024660,1000.0,0.00025,120]
[348044627,1736276034104,1000.0,0.00025,120]
[348044629,1736276089549,666.24733566,0.00025,120]
[348044632,1736276305543,17220.91172717,0.00015,2]
[348044633,1736276305587,20000.0,0.00015,2]
[348044634,1736276305626,20000.0,0.00015,2]
[348044635,1736276305667,20000.0,0.00015,2]
[348044636,1736276305706,20000.0,0.00015,2]
[348044637,1736276305745,20000.0,0.00015,2]
[348044638,1736276305786,20000.0,0.00015,2]
[348044639,1736276305826,12779.08827283,0.00015,2]
[348044642,1736276513243,233.325153,0.00013973,2]
[348044702,1736277032736,-221.0980722,0.00018094,2]
[348044704,1736277032747,-176.84710488,0.00018532,2]
[348044706,1736277032756,-176.84710488,0.00018568,2]
[348044708,1736277032766,-176.84710488,0.00018604,2]
[348044710,1736277032775,-360.9676553,0.00018632,2]
[348044715,1736277032811,-9947.30449367,0.00018632,2]
[348044717,1736277032820,-176.84710488,0.0001864,2]
[348044719,1736277032829,-663.967,0.0001874,2]
[348044721,1736277032839,-157.54729784,0.00019077,2]
[348044723,1736277032849,-351.99284488,0.00019078,2]
[348044725,1736277032858,-163.14834759,0.00019078,2]
[348044727,1736277032868,-309.919614,0.000191,8]
[348044729,1736277032878,-352.03397194,0.00019176,2]
[348044731,1736277032887,-175.33987811,0.00019177,2]
[348044733,1736277032897,-21638.42585276,0.00019177,3]
[348044735,1736277032907,-1327.25431958,0.00019177,3]
[348044737,1736277032917,-1379440.78165705,0.00019177,5]
[348044739,1736277032929,-467.26527236,0.00019177,5]
[348044784,1736277038585,-6162.53581584,0.00019177,5]
[348045007,1736277040731,-4841.0,0.00019177,5]
[348045009,1736277040743,-1817.11392651,0.00019177,5]
[348045155,1736277043594,-352.03397194,0.00019177,5]
[348045171,1736277559752,229.702617,0.00013973,2]
[348045371,1736278239301,-651.278,0.0001822,2]
[348045373,1736278239311,-300.0,0.00018284,2]
[348045375,1736278239320,-3389.46361405,0.00018285,2]
[348045377,1736278239331,-2452.68352797,0.00018285,2]
[348045380,1736278239342,-4605.62440097,0.00018285,2]
[348045382,1736278239351,-10447.77154299,0.00018565,2]
[348045384,1736278239360,-10447.77154299,0.00018896,2]
[348045385,1736278239369,-10447.77154302,0.00018923,2]
[348045386,1736278239380,-473.3728425,0.00018985,2]
[348045387,1736278239390,-3169.58572955,0.00019,3]
[348045388,1736278239400,-162.85994609,0.00019076,2]
[348045389,1736278239410,-8089.77459551,0.00019077,2]
[348045390,1736278239419,-302.8788636,0.00019081,2]
[348045391,1736278239428,-500.0,0.00019131,2]
[348045392,1736278239438,-500.0,0.00019131,2]
[348045393,1736278239447,-463.71552089,0.00019131,2]
[348045394,1736278239456,-480.86691111,0.00019131,2]
[348045395,1736278239465,-500.0,0.00019131,2]
[348045396,1736278239474,-500.0,0.00019131,2]
[348045397,1736278239483,-500.0,0.00019131,2]
[348045398,1736278239492,-500.0,0.00019131,2]
[348045399,1736278239501,-500.0,0.00019131,2]
[348045400,1736278239510,-500.0,0.00019131,2]
[348045401,1736278239519,-500.0,0.00019131,2]
[348045402,1736278239528,-500.0,0.00019131,2]
[348045403,1736278239537,-500.0,0.00019131,2]
[348045404,1736278239546,-500.0,0.00019131,2]
[348045405,1736278239555,-500.0,0.00019131,2]
[348045406,1736278239563,-500.0,0.00019131,2]
[348045407,1736278239572,-500.0,0.00019131,2]
[348045408,1736278239581,-500.0,0.00019131,2]
[348045410,1736278239591,-500.0,0.00019131,2]
[348045412,1736278239600,-500.0,0.00019131,2]
[348045414,1736278239609,-500.0,0.00019131,2]
[348045416,1736278239619,-348.2607846,0.00019131,2]
[348045418,1736278239630,-500.0,0.00019131,2]
[348045420,1736278239639,-500.0,0.00019131,2]
[348045422,1736278239649,-500.0,0.00019131,2]
[348045424,1736278239658,-500.0,0.00019131,2]
[348045426,1736278239667,-68694.86201774,0.00019132,2]
[348045428,1736278239677,-500.0,0.00019173,2]
[348045430,1736278239686,-500.0,0.00019173,2]
[348045432,1736278239695,-266.60828839,0.00019173,2]
[348045434,1736278239704,-151.0,0.00019176,2]
[348045436,1736278239714,-155.87417626,0.00019176,2]
[348045437,1736278239725,-160.44069323,0.00019176,2]
[348045439,1736278239736,-91595.72581617,0.00019177,5]
[348045836,1736278243638,-655.57709703,0.00019177,5]
[348045843,1736278243687,-62191.60473655,0.00019177,5]
[348045845,1736278243699,-19407.40000001,0.00019177,5]
[348046354,1736278438739,226.261141,0.00013973,2]
[348046435,1736279432242,-639.433,0.00016812,2]
[348046437,1736279432252,-639.433,0.00016982,2]
[348046439,1736279432262,-166.624,0.0001822,2]
[348046809,1736279436309,-472.809,0.0001822,2]
[348046811,1736279436319,-11.046,0.000188,2]
[348046820,1736279436400,-138.954,0.000188,2]
[348046822,1736279436411,-150.0,0.000188,2]
[348046825,1736279436422,-236.6864213,0.00018985,2]
[348046827,1736279436432,-302.8788636,0.00019,2]
[348046829,1736279436441,-170.92855323,0.00019077,2]
[348046833,1736279436451,-300.0,0.00019099,2]
[348046835,1736279436461,-153.2653797,0.000191,2]
[348046839,1736279436470,-214.6648391,0.000191,2]
[348046841,1736279436480,-365.6124094,0.000191,2]
[348046845,1736279436490,-734.6217117,0.000191,2]
[348046848,1736279436499,-153.0,0.000191,2]
[348046850,1736279436509,-153.6400067,0.000191,2]
[348046853,1736279436518,-154.18,0.000191,2]
[348046857,1736279436528,-223.54317191,0.00019176,2]
[348046859,1736279436537,-500.0,0.00019176,2]
[348046863,1736279436547,-260.91786496,0.00019176,2]
[348046866,1736279436557,-500.0,0.00019176,2]
[348046894,1736279436688,-499.0,0.00019176,2]
[348046898,1736279436703,-1751.07967144,0.00019177,3]
[348047075,1736279438137,-15684.31013018,0.00019177,3]
[348047077,1736279438146,-2089.98955798,0.00019177,3]
[348047080,1736279438156,-322225.70031234,0.00019177,5]
[348047082,1736279438168,-8216.77480904,0.00019177,5]
[348047090,1736279438238,-96515.85332184,0.00019177,5]
[348047092,1736279438249,-1020.0,0.00019177,5]
[348047263,1736279439980,-167.008,0.00018985,2]
[348047265,1736279439989,-3218.992,0.00019177,5]
[348047276,1736279440082,-854.36748608,0.00019177,5]
[348047279,1736279440094,-1703.59999997,0.00019177,5]
[348047371,1736279443113,-417.820578,0.00019177,5]
[348047373,1736279443126,-153821.53908975,0.00019177,5]
[348047374,1736279443136,-167.008,0.00019177,2]
[348047375,1736279443147,-500.0,0.00019178,2]
[348047377,1736279443156,-500.0,0.00019178,2]
[348047378,1736279443166,-2445.41,0.00019178,2]
[348047379,1736279443177,-500.0,0.00019178,2]
[348047381,1736279443187,-500.0,0.00019178,2]
[348047382,1736279443198,-180.47823849,0.00019178,2]
[348047384,1736279443207,-508.58805311,0.00019178,2]
[348047385,1736279443217,-513.82548902,0.00019178,2]
[348047387,1736279443228,-500.0,0.00019178,2]
[348047388,1736279443237,-500.0,0.00019178,2]
[348047390,1736279443247,-500.0,0.00019178,2]
[348047391,1736279443258,-500.0,0.00019178,2]
[348047393,1736279443269,-500.0,0.00019178,2]
[348047394,1736279443279,-500.0,0.00019178,2]
[348047395,1736279443289,-500.0,0.00019178,2]
[348047396,1736279443298,-500.0,0.00019178,2]
[348047397,1736279443309,-500.0,0.00019178,2]
[348047398,1736279443321,-500.0,0.00019178,2]
[348047400,1736279443331,-500.0,0.00019178,2]
[348047401,1736279443341,-500.0,0.00019178,2]
[348047403,1736279443351,-504.72822213,0.00019178,2]
[348047404,1736279443361,-500.0,0.00019178,2]
[348047406,1736279443371,-500.0,0.00019178,2]
[348047407,1736279443381,-503.31103708,0.00019178,2]
[348047408,1736279443391,-500.0,0.00019178,2]
[348047409,1736279443402,-500.0,0.00019178,2]
[348047410,1736279443413,-500.0,0.00019178,2]
[348047411,1736279443424,-500.0,0.00019178,2]
[348047412,1736279443434,-500.0,0.00019178,2]
[348047413,1736279443444,-500.0,0.00019178,2]
[348047414,1736279443455,-500.0,0.00019178,2]
[348047415,1736279443465,-500.0,0.00019178,5]
[348047416,1736279443475,-500.0,0.00019178,2]
[348047417,1736279443485,-500.0,0.00019178,2]
[348047418,1736279443495,-500.0,0.00019178,2]
[348047419,1736279443505,-500.0,0.00019178,2]
[348047420,1736279443515,-500.0,0.00019178,2]
[348047421,1736279443525,-500.0,0.00019178,2]
[348047422,1736279443535,-500.0,0.00019178,2]
[348047423,1736279443545,-500.0,0.00019178,2]
[348047424,1736279443555,-500.0,0.00019178,2]
[348047425,1736279443567,-500.0,0.00019178,2]
[348047426,1736279443576,-500.0,0.00019178,2]
[348047427,1736279443586,-500.0,0.00019178,2]
[348047428,1736279443595,-500.0,0.00019178,2]
[348047429,1736279443605,-500.0,0.00019178,2]
[348047430,1736279443615,-500.0,0.00019178,2]
[348047431,1736279443625,-500.0,0.00019178,2]
[348047432,1736279443635,-500.0,0.00019178,2]
[348047433,1736279443646,-500.0,0.00019178,2]
[348047434,1736279443656,-500.0,0.00019178,2]
[348047435,1736279443666,-500.0,0.00019178,2]
[348047436,1736279443676,-500.0,0.00019178,2]
[348047438,1736279443685,-500.0,0.00019178,2]
[348047439,1736279443695,-500.0,0.00019178,2]
[348047440,1736279443705,-500.0,0.00019178,2]
[348047441,1736279443715,-296.10663722,0.00019178,2]
[348047442,1736279443724,-500.0,0.00019178,2]
[348047443,1736279443734,-500.0,0.00019178,2]
[348047444,1736279443743,-500.0,0.00019178,2]
[348047446,1736279443753,-500.0,0.00019178,2]
[348047447,1736279443763,-500.0,0.00019178,2]
[348047449,1736279443773,-500.0,0.00019178,2]
[348047451,1736279443783,-500.0,0.00019178,2]
[348047452,1736279443792,-500.0,0.00019178,2]
[348047454,1736279443802,-500.0,0.00019178,2]
[348047455,1736279443812,-500.0,0.00019178,2]
[348047456,1736279443822,-500.0,0.00019178,2]
[348047457,1736279443831,-500.0,0.00019178,2]
[348047458,1736279443841,-500.0,0.00019178,2]
[348047459,1736279443852,-500.0,0.00019178,2]
[348047461,1736279443864,-500.0,0.00019178,2]
[348047462,1736279443873,-479.97005566,0.00019178,2]
[348047464,1736279443883,-522.19516759,0.00019178,2]
[348047466,1736279443893,-500.0,0.00019178,2]
[348047467,1736279443903,-500.0,0.00019178,2]
[348047469,1736279443913,-500.0,0.00019178,2]
[348047471,1736279443934,-500.0,0.00019178,2]
[348047473,1736279443944,-500.0,0.00019178,2]
[348047474,1736279443954,-500.0,0.00019178,2]
[348047476,1736279443965,-500.0,0.00019178,2]
[348047477,1736279443975,-500.0,0.00019178,2]
[348047479,1736279443985,-500.0,0.00019178,2]
[348047480,1736279443996,-500.0,0.00019178,2]
[348047481,1736279444006,-500.0,0.00019178,2]
[348047482,1736279444016,-506.64461806,0.00019178,2]
[348047483,1736279444026,-500.0,0.00019178,2]
[348047484,1736279444036,-500.0,0.00019178,2]
[348047485,1736279444046,-500.0,0.00019178,2]
[348047486,1736279444057,-500.0,0.00019178,2]
[348047487,1736279444067,-500.0,0.00019178,2]
[348047488,1736279444078,-500.0,0.00019178,2]
[348047489,1736279444088,-500.0,0.00019178,2]
[348047490,1736279444103,-500.0,0.00019178,2]
[348047491,1736279444114,-500.0,0.00019178,2]
[348047492,1736279444125,-500.0,0.00019178,2]
[348047493,1736279444135,-500.0,0.00019178,2]
[348047494,1736279444146,-500.0,0.00019178,2]
[348047495,1736279444156,-500.0,0.00019178,2]
[348047496,1736279444166,-500.0,0.00019178,2]
[348047497,1736279444176,-500.0,0.00019178,2]
[348047498,1736279444186,-500.0,0.00019178,2]
[348047499,1736279444197,-500.0,0.00019178,2]
[348047500,1736279444206,-500.0,0.00019178,2]
[348047501,1736279444216,-500.0,0.00019178,2]
[348047502,1736279444226,-500.0,0.00019178,2]
[348047503,1736279444236,-500.0,0.00019178,2]
[348047504,1736279444246,-500.0,0.00019178,2]
[348047505,1736279444256,-500.0,0.00019178,2]
[348047506,1736279444265,-624.30340965,0.00019178,2]
[348047507,1736279444275,-500.0,0.00019178,2]
[348047508,1736279444285,-505.49408059,0.00019178,2]
[348047509,1736279444294,-508.85923822,0.00019178,2]